Cogmind - Beta 13 @@@ ROGUE MODE // 2024.04.11 @ 11:34:36 Player: m1m1c Result: Destroyed by G-47 Trooper with Particle Gun Performance ------------- Evolutions (2) 1000 Regions Visited (6) 1200 Robots Destroyed (32) 160 Value Destroyed (745) 745 Prototype IDs (1) 20 Alien Tech Used (0) 0 Bonus (232) 232 TOTAL SCORE: 3357 Bonus ------- Pacifist 200 High Alert Combat Kills 33 Follower Combat Kills 33 Friendly Fire -34 Cogmind --------- Core Integrity 0/550 Matter 101/300 Energy 76/100 System Corruption 1% Temperature Cool (9) Movement Core (50) Location -8/Storage Parts ------- > --- POWER (1) -------- (None) > --- PROPULSION (4) --- (None) > --- UTILITY (4) ------ Hacking Suite System Shield > --- WEAPON (2) ------- (None) > --- INVENTORY (5) ---- Cesium-ion Thruster Large Storage Unit Datajack Peak State ------------ > --- POWER ------------ Light Deuterium Engine > --- PROPULSION ------- Aluminum Leg Aluminum Leg Flexi-carbon Leg > --- UTILITY ---------- Small Storage Unit Weight Redist. System Hardened Medium Armor Plating > --- WEAPON ----------- EM Pulse Gun Improved Medium Laser > --- INVENTORY -------- Cesium-ion Thruster Large Storage Unit Sensor Array Signal Interpreter Propulsion Shielding Battle Cannon Flak Cannon Datajack [Rating: 21] Favorites ----------- Power Ion Engine Engine Ion Engine Propulsion Aluminum Leg Leg Aluminum Leg Flight Unit Cesium-ion Thruster Utility Small Storage Unit Device Weight Redist. System Storage Small Storage Unit Processor Signal Interpreter Hackware Hacking Suite Protection Propulsion Shielding Weapon EM Pulse Gun Energy Gun EM Pulse Gun Ballistic Cannon Battle Cannon Launcher Rocket Launcher Build | -11 -10 -10 -9 -9 -8 -8 ------- Run | Yrd Mat Min Mat Min Mat Sto Slots Evolved 4 | . . . 2 . 2 . Power . | . . . . . . . Propulsion 2 | . . . 1 . 1 . Utility 2 | . . . 1 . 1 . Weapon . | . . . . . . . Parts Attached 27 | 6 1 1 4 6 6 3 Power 3 | 1 . 1 . 1 . . Engine 3 | 1 . 1 . 1 . . Core . | . . . . . . . Reactor . | . . . . . . . Propulsion 6 | 2 . . . 2 2 . Treads . | . . . . . . . Leg 5 | 2 . . . 1 2 . Wheel . | . . . . . . . Hover . | . . . . . . . Flight 1 | . . . . 1 . . Utility 10 | 1 1 . 3 1 2 2 Device 2 | . . . 1 . 1 . Storage 2 | 1 1 . . . . . Processor 1 | . . . . . 1 . Hackware 2 | . . . . . . 2 Protection 3 | . . . 2 1 . . Artifact . | . . . . . . . Weapon 8 | 2 . . 1 2 2 1 Energy Gun 3 | 2 . . 1 . . . Energy Cannon . | . . . . . . . Ballistic Gun . | . . . . . . . Ballistic Cannon 3 | . . . . 2 . 1 Launcher 2 | . . . . . 2 . Special Weapon . | . . . . . . . Impact Weapon . | . . . . . . . Slashing Weapon . | . . . . . . . Piercing Weapon . | . . . . . . . Special Melee Weapon . | . . . . . . . Unidentified Prototypes 1 | . . . 1 . . . Parts Lost 17 | . . . . 7 8 2 Power 2 | . . . . 1 1 . Propulsion 5 | . . . . 2 2 1 Utility 4 | . . . . 2 2 . Weapon 6 | . . . . 2 3 1 Highest Loss Streak 8 | . . . . 7 6 8 To Critical Strikes . | . . . . . . . Average Slot Usage (%) 75 | . 85 85 85 70 75 15 Engine 8 | . 14 14 11 4 9 . Leg 18 | . 28 28 22 12 15 1 Flight 2 | . . . . 9 . . Device 3 | . . . 8 1 8 . Storage 11 | . 14 14 11 11 9 5 Processor 1 | . . . . . 8 5 Protection 7 | . . . 11 11 9 . Energy Gun 12 | . 28 28 22 1 . . Ballistic Cannon 6 | . . . . 19 6 1 Launcher 1 | . . . . . 8 . Naked Turns 29 | . . . . . . 29 Heaviest Build 23 | 14 14 14 23 23 19 11 Greatest Support 47 | 20 20 20 26 46 47 20 Greatest Overweight (x) 3 | 3 . . 1 . . 3 Average Overweight (x) . | . . . . . . . Largest Inventory Capacity 8 | 8 8 8 8 8 8 8 Average Capacity 7 | 7 8 8 8 8 8 7 Most Carried 8 | . 2 6 8 8 6 4 Average Carried 4 | . 1 4 6 5 4 3 Final Capacity 8 | 8 8 8 8 8 8 5 Final Carried 8 | . 2 6 8 6 4 3 Class Distribution -------------------- 93% | Mutant 6% | Scavenger-Mutant Dominant Class ---------------- Mutant | -10/Materials Mutant | -10/Mines Mutant | -9/Materials Mutant | -9/Mines Mutant | -8/Materials Mutant | -8/Storage Resources | -11 -10 -10 -9 -9 -8 -8 ----------- Run | Yrd Mat Min Mat Min Mat Sto Matter Collected 676 | 88 182 10 40 137 125 94 Remotely . | . . . . . . . Salvage Created 683 | . . . 93 87 503 . Parts 52 | . . . 5 12 35 . Haulers Intercepted 2 | . . . . . 2 . Recyclers Shooed 2 | . . . . . 2 . Parts Field Recycled . | . . . . . . . Retrieved Matter . | . . . . . . . Parts Self-Destructed . | . . . . . . . Prevented . | . . . . . . . Kills | -11 -10 -10 -9 -9 -8 -8 ------- Run | Yrd Mat Min Mat Min Mat Sto Combat Hostiles Destroyed 22 | . . . 1 10 11 . Guns 1 | . . . 1 . . . Cannons 11 | . . . . 10 1 . AOE 10 | . . . . . 10 . Classes Destroyed 11 | . . . 2 3 6 . Worker 1 | . . . . . 1 . Builder 2 | . . . . . 2 . Hauler 2 | . . . . . 2 . Recycler 1 | . . . . . 1 . Mechanic 1 | . . . . . 1 . Watcher 3 | . . . 2 . 1 . Swarmer 11 | . . . . 7 4 . Grunt 6 | . . . . 1 5 . Brawler 1 | . . . . . 1 . Sentry 2 | . . . 1 . 1 . Demolisher 2 | . . . . 2 . . Best Kill Streak 13 | . . . 1 3 13 . Combat Bots Only 8 | . . . 1 3 8 . Max Kills in Single Turn 3 | . . . 1 1 3 . Gunslinging . | . . . . . . . Exploded 3 | . . . . . 3 . Melee . | . . . . . . . Uniques/NPCs Destroyed . | . . . . . . . Combat | -11 -10 -10 -9 -9 -8 -8 -------- Run | Yrd Mat Min Mat Min Mat Sto Hostile Shots Fired 212 | . 5 . 12 66 72 57 Missed 82 | . 2 . 3 20 31 26 Damage Taken 2317 | . 35 64 159 896 670 493 Core 797 | . 12 14 15 193 192 371 Absorbed by Shields . | . . . . . . . Redirected to Shielding 51 | . . . . 12 39 . Core Remaining (%) 79 | 100 . 89 . 48 . . Volleys Fired 68 | . . . 11 26 23 8 Largest 2 | . . . 2 2 2 1 Hottest 100 | . . . 96 100 72 44 Shots Fired 117 | . . . 22 49 38 8 Gun 30 | . . . 22 8 . . Cannon 68 | . . . . 41 19 8 Launcher 19 | . . . . . 19 . Special . | . . . . . . . Kinetic 68 | . . . . 41 19 8 Thermal 16 | . . . 11 5 . . Explosive 10 | . . . . . 10 . Electromagnetic 23 | . . . 11 3 9 . Robot Hit Streak 12 | . . . 3 6 12 . Robot Miss Streak 15 | . . . 4 15 6 12 Penetration Max . | . . . . . . . Secondary Targets . | . . . . . . . Shots Hit Robots 58 | . . . 9 33 16 . Core Hits 67 | . . . 4 24 35 4 Critical Kills . | . . . . . . . Critical Parts Destroyed . | . . . . . . . Critical Strikes 1 | . . . . 1 . . Blast 1 | . . . . 1 . . Melee Attacks . | . . . . . . . Impact . | . . . . . . . Slashing . | . . . . . . . Piercing . | . . . . . . . Sneak Attacks . | . . . . . . . Combat Hostiles . | . . . . . . . Follow-up Attacks . | . . . . . . . Damage Inflicted 2377 | . . . 208 689 1429 51 Guns 254 | . . . 167 87 . . Cannons 766 | . . . . 476 258 32 Explosions 1297 | . . . 41 96 1160 . Melee . | . . . . . . . Ramming 60 | . . . . 30 11 19 Kinetic 766 | . . . . 476 258 32 Thermal 306 | . . . 143 163 . . Explosive 774 | . . . . . 774 . Electromagnetic 471 | . . . 65 20 386 . Impact . | . . . . . . . Slashing . | . . . . . . . Piercing . | . . . . . . . Highest Corruption 1 | . . . . . 1 1 Average Corruption 1 | . . . . . 1 1 Corruption Purged . | . . . . . . . Corruption Blocked . | . . . . . . . Effects 4 | . . . . . 4 . Message Errors 2 | . . . . . 2 . Energy Discharges 2 | . . . . . 2 . Overload Shots . | . . . . . . . Overflow Damage 36 | . . . . 7 29 . Projectiles 36 | . . . . 7 29 . Explosions . | . . . . . . . Melee . | . . . . . . . Knockbacks 11 | . . . . 11 . . Impact . | . . . . . . . Kinetic 10 | . . . . 10 . . Secondary 1 | . . . . 1 . . Self-Inflicted Damage 99 | . . . . . 90 9 Shots 4 | . . . . . 4 . Rammed 6 | . . . . . . 6 Targets Rammed 14 | . . . . 5 3 6 Kicked 8 | . . . . 5 3 . Crushed . | . . . . . . . Highest Temperature 231 | . . . 231 192 21 . Average Temperature 74 | . . . 81 89 7 . Received Heat Transfer 663 | . 18 . 45 87 270 243 Siege Activations . | . . . . . . . Robots Corrupted . | . . . . . . . Combat Hostiles . | . . . . . . . Parts Fried 2 | . . . . . 2 . Impact Corruptions . | . . . . . . . Robots Melted . | . . . . . . . Combat Hostiles . | . . . . . . . Parts Melted 2 | . . . 2 . . . Heat Transferred 520 | . . . 272 248 . . Parts Sabotaged . | . . . . . . . Parts Stolen . | . . . . . . . Parts Stripped . | . . . . . . . Power Chain Reactions 2 | . . . 1 1 . . Alert | -11 -10 -10 -9 -9 -8 -8 ------- Run | Yrd Mat Min Mat Min Mat Sto Peak Influence 515 | . 7 2 103 171 515 216 Initial 191 | . . 2 . 13 27 191 Average 90 | . 3 2 35 96 269 198 Maximum Alert Level 2 | . . . . . 2 1 Low Security (%) 87 | 100 100 100 100 100 44 48 Level 1 6 | . . . . . 21 51 Level 2 5 | . . . . . 34 . Level 3 . | . . . . . . . Level 4 . | . . . . . . . Level 5 . | . . . . . . . High Security . | . . . . . . . Max Security . | . . . . . . . Squads Dispatched 4 | . 1 . . . 2 1 Investigation 1 | . 1 . . . . . Extermination . | . . . . . . . Reinforcement 3 | . . . . . 2 1 Assault . | . . . . . . . Garrison . | . . . . . . . Intercept . | . . . . . . . Searches Triggered . | . . . . . . . Construction Impeded 1 | . . . . . 1 . Haulers Reinforced . | . . . . . . . Active Scanning Responses . | . . . . . . . Cargo Convoy Interrupts . | . . . . . . . Stealth | -11 -10 -10 -9 -9 -8 -8 --------- Run | Yrd Mat Min Mat Min Mat Sto Distress Signals 3 | . . . 1 1 1 . Communications Jammed . | . . . . . . . Distress Signals . | . . . . . . . Times Spotted 47 | . 1 2 5 11 19 9 Peak Tracking Total 9 | . 2 2 3 4 5 9 Tactical Retreats 2 | . . . . . 2 . Traps | -11 -10 -10 -9 -9 -8 -8 ------- Run | Yrd Mat Min Mat Min Mat Sto Traps Triggered 3 | . 1 2 . . . . Indirectly . | . . . . . . . Trap Hack Attempts . | . . . . . . . Triggered . | . . . . . . . Disarmed . | . . . . . . . Reprogrammed . | . . . . . . . Reused . | . . . . . . . Traps Extracted . | . . . . . . . Installed . | . . . . . . . Triggered . | . . . . . . . Machines | -11 -10 -10 -9 -9 -8 -8 ---------- Run | Yrd Mat Min Mat Min Mat Sto Machines Disabled 3 | . . . . 1 2 . Max in Single Turn 1 | . . . . 1 1 . Machines Repaired . | . . . . . . . Machines Dismantled . | . . . . . . . Machines Sabotaged . | . . . . . . . Overloaded Fab Kills . | . . . . . . . Hacking | -11 -10 -10 -9 -9 -8 -8 --------- Run | Yrd Mat Min Mat Min Mat Sto Machines Accessed 5 | . 2 1 1 . 1 . Terminals 3 | . 2 . 1 . . . Fabricators . | . . . . . . . Repair Stations . | . . . . . . . Recycling Units . | . . . . . . . Scanalyzers 1 | . . . . . 1 . Garrison Access . | . . . . . . . Total Hacks 8 | . 2 1 2 . 3 . Successful 6 | . 2 1 2 . 1 . Failed 2 | . . . . . 2 . Catastrophic . | . . . . . . . Database Lockouts . | . . . . . . . Manual . | . . . . . . . Terminals 4 | . 2 . 2 . . . Fabricators . | . . . . . . . Repair Stations . | . . . . . . . Recycling Units . | . . . . . . . Scanalyzers 3 | . . . . . 3 . Garrison Access . | . . . . . . . Terminal Hacks 5 | . 2 1 2 . . . Open Door 1 | . . 1 . . . . Alert Level 2 | . . . 2 . . . Hauler Manifests 1 | . 1 . . . . . Registered Components 1 | . 1 . . . . . Fabricator Hacks . | . . . . . . . Repair Station Hacks . | . . . . . . . Recycling Unit Hacks . | . . . . . . . Scanalyzer 1 | . . . . . 1 . Insert Component 1 | . . . . . 1 . Garrison Access Hacks . | . . . . . . . Unauthorized Hacks . | . . . . . . . Terminals . | . . . . . . . Fabricators . | . . . . . . . Repair Stations . | . . . . . . . Recycling Units . | . . . . . . . Scanalyzers . | . . . . . . . Garrison Access . | . . . . . . . Data Cores Recovered . | . . . . . . . Used . | . . . . . . . Hacking Detections 2 | . . . 1 . 1 . Full Trace Events . | . . . . . . . Feedback Events . | . . . . . . . Feedback Blocked . | . . . . . . . Robot Schematics Acquired . | . . . . . . . Robots Built . | . . . . . . . Authchips . | . . . . . . . Time . | . . . . . . . Total Robot Build Rating . | . . . . . . . Part Schematics Acquired . | . . . . . . . Parts Built . | . . . . . . . Authchips . | . . . . . . . Time . | . . . . . . . Total Part Build Rating . | . . . . . . . Parts Repaired . | . . . . . . . Time . | . . . . . . . Parts Recycled . | . . . . . . . Recycled Matter . | . . . . . . . Retrieved Matter . | . . . . . . . Retrieved Components . | . . . . . . . Parts Scanalyzed 1 | . . . . . 1 . Part Schematics Acquired . | . . . . . . . Parts Damaged . | . . . . . . . Bothacking | -11 -10 -10 -9 -9 -8 -8 ------------ Run | Yrd Mat Min Mat Min Mat Sto Used RIF Installer . | . . . . . . . Robots Hacked . | . . . . . . . Non-combat . | . . . . . . . Combat . | . . . . . . . Robot Hacks Applied . | . . . . . . . Relay Couplers Released . | . . . . . . . Fabnet Peak Effective % . | . . . . . . . Robots Rewired . | . . . . . . . Allies Hacked . | . . . . . . . Hacks Repelled . | . . . . . . . Allies | -11 -10 -10 -9 -9 -8 -8 -------- Run | Yrd Mat Min Mat Min Mat Sto Total Allies 3 | . . 3 . . . . Largest Group 3 | . . 3 2 1 . . Highest-Rated Group 40 | . . 40 32 16 . . Highest-Rated Ally 16 | . . 16 16 16 . . Total Orders . | . . . . . . . Ally Attacks 15 | . . . 14 1 . . Total Damage 172 | . . . 157 15 . . Kills 2 | . . . 2 . . . Allies Corrupted . | . . . . . . . Allies Melted . | . . . . . . . Intel | -11 -10 -10 -9 -9 -8 -8 ------- Run | Yrd Mat Min Mat Min Mat Sto Robot Analysis Total . | . . . . . . . Derelict Logs Recovered . | . . . . . . . Drone Launches . | . . . . . . . Drone Recoveries . | . . . . . . . Exploration | -11 -10 -10 -9 -9 -8 -8 ------------- Run | Yrd Mat Min Mat Min Mat Sto Turns Passed 1871 | 64 172 276 444 502 309 104 Spaces Moved 1365 | 47 141 226 306 344 196 105 Core 112 | 12 . . . . . 100 Treads . | . . . . . . . Legs 1253 | 35 141 226 306 344 196 5 Wheels . | . . . . . . . Hover . | . . . . . . . Flight . | . . . . . . . Fastest Speed 50 | 50 120 120 120 120 120 50 Average Speed 119 | 119 120 120 131 120 120 73 Slowest Speed 200 | 200 120 120 190 120 123 200 Overloaded Moves . | . . . . . . . Propulsion Burnouts . | . . . . . . . Robots Hopped . | . . . . . . . Cave-ins Triggered . | . . . . . . . Exploration Rate (%) 26 | 4 23 34 26 56 19 22 Regions Visited 6 Branch Regions 3 Pre-discovered Areas . | . . . . . . . Known Exits Taken 1 | . . . . . 1 . Unknown Exits Taken 5 | 1 1 1 1 1 . . Scrap Searched 2 | . . . . 2 . . Spaces Dug . | . . . . . . . Terrain Destroyed 68 | . . . 3 6 59 . Melee . | . . . . . . . Projectile 5 | . . . . 5 . . AOE 63 | . . . 3 1 59 . Terrain Rammed . | . . . . . . . Walls Destroyed . | . . . . . . . Machines Disabled . | . . . . . . . Actions | -11 -10 -10 -9 -9 -8 -8 --------- Run | Yrd Mat Min Mat Min Mat Sto Total 1488 | 52 144 231 326 382 229 124 Wait . | . . . . . . . Move 1359 | 46 140 225 305 343 195 105 Hop . | . . . . . . . Pick Up 12 | . 2 4 4 2 . . Fast Attach 15 | 6 1 1 1 2 2 2 Attach 11 | . . . 2 4 4 1 Detach 3 | . . . 1 . 2 . Swap 1 | . . . 1 . . . Drop 5 | . 1 1 1 . . 2 Fire 68 | . . . 11 26 23 8 Melee . | . . . . . . . Ram 6 | . . . . . . 6 Kick 8 | . . . . 5 3 . Crush . | . . . . . . . Escape Stasis . | . . . . . . . Rewire . | . . . . . . . Trap . | . . . . . . . Miscellaneous . | . . . . . . . Route ------- -11/Scrapyard -10/Materials -10/Mines (discovered 2 exits: *Mat x2) -9/Materials (discovered 2 exits: *Mat / [*Min]) -9/Mines (discovered 2 exits: *Mat x2) -8/Materials -8/Storage History --------- Turn | Location | Event 21 | -11/Scrapyard | Discovered new exit (range 15) 65 | -11/Scrapyard | Entered Materials 224 | -10/Materials | Discovered new exit (range 7) 237 | -10/Materials | Entered Mines 252 | -10/Mines | Discovered new exit (range 7) 260 | -10/Mines | Assisted by bots powering up and referring to "LRC-V3" 315 | -10/Mines | Build established: Mutant 316 | -10/Mines | Met a Derelict who couldn't figure out how to use a Trap Extractor 404 | -10/Mines | A weapon hastily lodged in a ceiling crevice suddenly fell to the ground 451 | -10/Mines | Discovered new exit (range 8) 513 | -10/Mines | Entered Materials 513 | -9/Materials | Accompanied by 2 allies 513 | -9/Materials | Evolved 2 slots: Propulsion x1, Utility x1 780 | -9/Materials | Discovered new exit (range 4) 818 | -9/Materials | Discovered new exit (range 16) 957 | -9/Materials | Entered Mines 957 | -9/Mines | Accompanied by 1 ally 958 | -9/Mines | Assembled infested the area 963 | -9/Mines | Assisted by a Guerilla fighting off Assembled 1044 | -9/Mines | Lost 7 parts (1p2n2u2w) 1075 | -9/Mines | Discovered new exit (range 14) 1162 | -9/Mines | Discovered new exit (range 16) 1219 | -9/Mines | Received a Rocket Launcher from a helpful Derelict 1371 | -9/Mines | Core integrity fell below 50% 1459 | -9/Mines | Entered Materials 1459 | -8/Materials | Evolved 2 slots: Propulsion x1, Utility x1 1603 | -8/Materials | Discovered new exit (range 15) 1644 | -8/Materials | Destroyed 8 combat bots 1701 | -8/Materials | Identified exit to Storage 1768 | -8/Materials | Entered Storage 1803 | -8/Storage | Core integrity fell below 50% 1824 | -8/Storage | Lost 8 parts (1p3n2u2w) 1855 | -8/Storage | Core integrity fell below 20% 1872 | -8/Storage | Destroyed by G-47 Trooper with Particle Gun Last Messages --------------- ALERT: Hostiles spotted, dispatching reinforcements to Terminal S014. K-01 Serf cleans the Transfer Shaft. Flexi-carbon Leg destroyed. M-28 Smith repairs G-47 Trooper. Flak Cannon destroyed. Slammed into G-47 Trooper. Slammed into U-05 Engineer. Signal Interpreter broken. Destabilizing: Short circuit. Slammed into U-05 Engineer. Slammed into K-01 Serf. Slammed into A-02 Transporter. Slammed into O-16 Technician. Dropped Sml. Storage Unit. Discarded Broken Signal Interpreter. K-01 Serf collects debris. Acquired 94 matter. Acquired Hacking Suite. Acquired System Shield. Map ----- +----------------------------------------------------+ | ?????????????????????????????????????? ???????#" | | ?????????????????????????????????????##+#########" | | ??????????????????????????##???##????# / | | ?????????????????????????? ??## ### ######### | | ?????????????????????????+ T ####????? | | ?????????????????????????? ??## ### """#????? | | ??????????????????????????# #??##????# """#????? | | ??????????????????????????# #????????# R"#????? | | ??????????????????????????# #????????# """#????? | | ??????????????????????????# #????????# #######?? | | ??????????????????????????# ###??????# # #?? | | ??????????????????????????# +??????# # #?? | | ??????????????????????????# #??????# # #?? | | ??????????????????????????# ######## + #?? | | ??????????????????????????# # #?? | | ??????????????????????????# ########## ! # #?? | | ??????????????????????????# #????????# + #?? | | ??????????????????????????# #???###### # #?? | | ??????????????????????????# #???# # # #?? | | ??????????????????????????# #???# # # #?? | | ?????????????????????????## ##??# # # #?? | | ?????????????????????????# #### # # #?? | | ?????????????????????????# + ###########?? | | ?????????????????????????# #### #???????????? | | ????????????????????????###/##### #???????????? | | ????????????????????????#@gY ## #???????????? | | ????????????????????????# !## #???????????? | | ????????????????????????# [ #######???????????? | | ????????????????????????# [ #?????????????????? | | ????????????????????????#[ #?????????????????? | | ????????????????????????# #?????????????????? | | ????????????????????????##"T"###?????????????????? | | ?????????????????????????#####???????????????????? | | ?????????????????????????????????????????????????? | | ?????????????????????????????????????????????????? | | ?????????????????????????????????????????????????? | | ?????????????????????????????????????????????????? | | ?????????????????????????????????????????????????? | | ?????????????????????????????????????????????????? | | ?????????????????????????????????????????????????? | | ?????????????????????????????????????????????????? | | ?????????????????????????????????????????????????? | | ?????????????????????????????????????????????????? | | ?????????????????????????????????????????????????? | | ?????????????????????????????????????????????????? | | ?????????????????????????????????????????????????? | | ?????????????????????????????????????????????????? | | ?????????????????????????????????????????????????? | | ?????????????????????????????????????????????????? | | ?????????????????????????????????????????????????? | +----------------------------------------------------+ Best States ------------- Heat Dissipation 31 Energy Generation 14 Energy Capacity 250 Matter Stores 300 Matter Capacity 300 Sight Range 16 Robot Scan Range 14 Terrain Scan Density 10 Additional Mass Support 6 Armor Coverage 225 Propulsion Shielding 33 Evasion (%) 55 Offensive Hacking 10 Item Schematics ----------------- None Robot Schematics ------------------ None Fabricated ------------ Nothing Alien Tech Used ----------------- None Achievements -------------- None Challenges ------------ None Game ------ Seed AlphaEnhancedSplitter Manual? 0 Play Time 00:18:06 Cumulative 9.6 hours Start 2024.04.11 @ 10:38:37 End 2024.04.11 @ 11:34:36 Sessions 1 Manual Loads 0 Difficulty Rogue Special Mode None Game No. 38 Rogue 38 Adventurer 0 Explorer 0 Win Type - Total 0 Types 0/0/0/0/0/0/0/0/0 Lore% 11 Gallery% 14 Achievement% 13 Wizard Run 0 Options --------- Layout 1 ASCII 1 Keyboard 0 Movement Arrows Keybinds 0 Fullscreen 1 Font 18/SmallcapsGlow Map View 50x40 Zoom Use 0% Tactical HUD 0 Map Filters NONE Filters NONE Steam 1 RUN: 88ab8441-7114-4e17-8f6d-9ffbae579db0